bitfinex/quotes_SOLUSD_20241001
["timestamp","ask_amount","ask_price","bid_price","bid_amount"]
[1727745480685,6.4596,154.81,154.75,6.462]
[1727745481486,6.46,154.8,154.75,6.462]
[1727745482473,6.46,154.8,154.74,18.1039275]
[1727745482678,6.46,154.8,154.74,24.5662275]
[1727745483472,6.46,154.8,154.75,6.462]
[1727745483866,6.4604,154.79,154.73,22.9466]
[1727745484068,6.4608,154.78,154.74,30.0]
[1727745485879,1.61517055,154.81,154.73,16.4842]
[1727745486171,6.4616,154.76,154.73,16.4842]
[1727745486861,1.61517055,154.81,154.73,16.4842]
[1727745487085,6.4621,154.75,154.73,16.4842]
[1727745487397,1.61517055,154.81,154.69,15.0253]
[1727745487398,6.4625,154.74,154.69,15.0253]
[1727745487565,43.776884,154.79,154.69,15.0253]
[1727745487566,39.930184,154.77,154.69,15.0253]
[1727745487760,6.4637,154.71,154.69,15.0253]
[1727745488382,23.776884,154.75,154.65,16.2856]
[1727745488586,21.61585417,154.76,154.65,16.2856]
[1727745488587,1.6160125,154.74,154.65,16.2856]
[1727745488893,6.4646,154.69,154.65,16.2856]
[1727745489264,6.464,154.71,154.65,16.2856]
[1727745489689,6.464,154.71,154.66,6.4657]
[1727745491180,6.464,154.71,154.65,16.2856]
[1727745491389,8.08033551,154.7,154.65,22.7517]
[1727745491689,6.4642,154.7,154.65,22.7517]
[1727745492286,6.4649,154.68,154.65,16.2856]
[1727745492496,6.4649,154.68,154.63,6.1113]
[1727745493070,6.4649,154.68,154.63,12.5781]
[1727745493973,23.776884,154.72,154.64,6.4665]
[1727745494171,6.4646,154.69,154.64,6.4665]
[1727745497593,6.4641,154.7,154.65,6.4661]
[1727745502902,6.4658,154.66,154.61,22.8062]
[1727745503898,6.4658,154.66,154.62,6.4674]
[1727745504280,6.4654,154.67,154.62,6.4674]
[1727745508300,6.4659,154.66,154.61,22.8061]
[1727745510312,23.776884,154.71,154.63,6.467]
[1727745510313,6.4649,154.68,154.63,6.467]
[1727745513413,22.4931,154.74,154.61,34.4423275]
[1727745513589,6.4642,154.7,154.65,6.466]
[1727745513907,22.4931,154.74,154.65,6.466]
[1727745513908,6.4646,154.69,154.65,6.466]
[1727745514298,6.4646,154.69,154.61,34.4423275]
[1727745514503,6.4657,154.66,154.62,6.4674]
[1727745516104,23.776884,154.7,154.61,16.3384]
[1727745516317,6.4667,154.64,154.61,16.3384]
[1727745517005,6.4662,154.65,154.61,16.3384]
[1727745517599,1.61671731,154.68,154.61,16.3384]
[1727745517799,6.4666,154.64,154.61,16.3384]
[1727745518700,6.4662,154.65,154.61,16.3384]
[1727745520092,6.4662,154.65,154.6,6.4681]
[1727745520093,1.61672846,154.64,154.57,16.0948]
[1727745520294,6.468,154.61,154.57,16.0948]
[1727745520696,6.4673,154.63,154.58,6.4691]
[1727745520904,6.4666,154.64,154.59,6.4687]
[1727745521294,6.4666,154.64,154.6,6.4682]
[1727745521498,6.4661,154.66,154.6,6.4682]
[1727745521811,6.4663,154.65,154.6,6.4682]
[1727745522413,1.61673185,154.64,154.57,16.0948]
[1727745522595,1.61705748,154.69,154.57,16.0948]
[1727745522800,6.4678,154.61,154.57,16.0948]
[1727745523014,6.4683,154.6,154.57,16.0948]
[1727745523217,6.4679,154.61,154.57,16.0948]
[1727745523591,6.4679,154.61,154.57,22.5643]
[1727745524396,1.61711646,154.64,154.57,16.0948]
[1727745524618,6.467,154.63,154.58,6.469]
[1727745524924,8.08401016,154.63,154.58,6.469]
[1727745525422,6.4674,154.62,154.58,6.469]
[1727745527020,6.467,154.63,154.58,6.469]
[1727745529037,39.939484,154.68,154.57,16.0948]
[1727745529321,6.4662,154.65,154.61,6.4678]
[1727745530299,6.4662,154.65,154.6,6.4682]
[1727745532512,8.08337453,154.64,154.59,6.4686]
[1727745532709,6.4666,154.64,154.59,6.4686]
[1727745533610,1.61684225,154.63,154.57,16.0948]
[1727745533819,6.4682,154.61,154.57,16.0948]
[1727745534709,6.4682,154.61,154.57,22.5642]
[1727745535713,1.61702168,154.64,154.57,22.5642]
[1727745535900,6.4675,154.62,154.57,22.5642]
[1727745539542,1.6170156,154.61,154.57,16.0948]
[1727745539747,6.4679,154.61,154.57,16.0948]
[1727745540435,6.4673,154.63,154.57,16.0948]
[1727745540635,8.08460216,154.62,154.57,16.0948]
[1727745540811,6.4679,154.61,154.57,16.0948]
[1727745541111,1.61726915,154.6,154.57,16.0948]
[1727745541513,6.4679,154.61,154.57,16.0948]
[1727745541923,6.467,154.64,154.58,6.4688]
[1727745542125,1.61724909,154.64,154.58,6.4688]
[1727745542440,8.08384909,154.64,154.58,6.4688]
[1727745542613,22.4904,154.71,154.59,18.1039275]
[1727745542813,32.3094,154.76,154.63,6.4669]
[1727745542814,31.8898,154.74,154.63,6.4669]
[1727745543022,6.4661,154.66,154.61,6.0628]
[1727745543833,8.08288639,154.65,154.61,6.0628]
[1727745544077,1.61681216,154.64,154.57,34.1987275]
[1727745544220,1.61681216,154.64,154.57,40.2615275]
[1727745545235,8.08341216,154.64,154.58,6.469]
[1727745545432,1.6169448,154.63,154.58,6.469]
[1727745548316,23.776884,154.69,154.59,18.1039275]
[1727745548823,19.45,154.73,154.62,6.4674]
[1727745549146,6.4648,154.69,154.63,6.467]
[1727745549353,31.8906,154.74,154.63,24.1221275]
[1727745549530,6.4637,154.71,154.65,6.4661]
[1727745550546,1.61626064,154.7,154.65,6.4661]
[1727745551565,8.08036064,154.7,154.64,6.4666]
[1727745551749,1.61639467,154.69,154.64,6.4666]
[1727745552228,8.08089467,154.69,154.63,12.4852]
[1727745552429,1.6164087,154.68,154.63,12.4852]
[1727745553354,1.6164087,154.68,154.63,6.0182]
[1727745553523,6.4651,154.68,154.63,6.0182]
[1727745553850,1.61655318,154.67,154.63,6.0182]
[1727745554160,6.4651,154.68,154.63,6.0182]
[1727745554650,8.08189964,154.67,154.63,6.0182]
[1727745554836,1.61659284,154.66,154.63,6.0182]
[1727745558647,6.4654,154.67,154.63,6.0182]
[1727745559235,23.776884,154.65,154.57,15.9897]
[1727745559539,43.776884,154.69,154.57,15.9897]
[1727745559540,6.4673,154.63,154.57,26.09256294]
[1727745559739,1.61709388,154.62,154.57,22.459]
[1727745559930,6.4675,154.62,154.57,22.459]
[1727745560128,1.61709638,154.61,154.57,22.459]
[1727745560329,6.4671,154.63,154.57,22.459]
[1727745560554,6.4679,154.61,154.57,15.9897]
[1727745560855,1.61724875,154.6,154.57,15.9897]
[1727745561635,6.4679,154.61,154.57,15.9897]
[1727745569846,8.0855427,154.6,154.57,15.9897]
[1727745570053,1.61734509,154.59,154.57,15.9897]
[1727745570955,6.4683,154.6,154.57,15.9897]
[1727745572356,15.8636,154.62,154.54,3.63418908]
[1727745572553,45.39421467,154.59,154.46,9.44887933]
[1727745572854,45.39421467,154.59,154.47,15.23358703]
[1727745573153,45.39421467,154.59,154.48,3.63418908]
[1727745573360,45.39421467,154.59,154.47,11.59939795]
[1727745573361,6.4707,154.55,154.49,3.63853967]
[1727745573541,6.4707,154.55,154.48,3.63853967]
[1727745573858,6.4707,154.55,154.47,3.63853967]
[1727745574083,6.4707,154.55,154.48,3.63853967]
[1727745574259,6.4707,154.55,154.49,6.4725]
[1727745575046,43.776884,154.59,154.47,3.63853967]
[1727745575356,6.4712,154.53,154.47,6.4736]
[1727745575559,1.61817865,154.52,154.47,6.4736]
[1727745575750,23.776884,154.54,154.47,6.4736]
[1727745575954,6.4724,154.51,154.45,16.0095]
[1727745576161,8.09076238,154.5,154.45,16.0095]
[1727745576457,6.472,154.52,154.45,22.4839]
[1727745576661,8.09034614,154.51,154.45,22.4839]
[1727745577741,1.61835088,154.5,154.45,22.4839]
[1727745577947,6.4729,154.49,154.45,16.0095]
[1727745578143,1.61853246,154.48,154.43,6.4753]
[1727745578454,23.776884,154.47,154.39,6.477]
[1727745578642,30.251784,154.45,154.39,6.477]
[1727745578843,1.61904019,154.44,154.39,6.477]
[1727745580368,1.61904019,154.44,154.38,6.4774]
[1727745580369,8.09404019,154.44,154.38,6.4774]
[1727745580554,1.61911059,154.43,154.38,6.4774]
[1727745580751,6.4746,154.45,154.39,6.477]
[1727745580951,1.61908803,154.44,154.39,6.477]
[1727745582669,1.61919103,154.43,154.39,6.477]
[1727745582966,1.61919103,154.43,154.35,18.13644831]
[1727745583168,23.776884,154.47,154.35,18.13644831]
[1727745583469,23.776884,154.44,154.39,6.477]
[1727745583658,1.61914174,154.43,154.39,6.477]
[1727745585169,23.776884,154.44,154.39,6.477]
[1727745585668,20.0,154.48,154.4,6.4766]
[1727745585873,6.4746,154.45,154.4,6.4766]
[1727745586050,1.61907012,154.44,154.4,6.4766]
[1727745589248,1.61907012,154.44,154.35,18.13644831]
[1727745589452,8.09437012,154.44,154.38,6.4772]
[1727745589655,23.776884,154.46,154.35,18.13644831]
[1727745589656,20.0,154.48,154.35,18.13644831]
[1727745589851,23.776884,154.45,154.4,6.4766]
[1727745590771,30.251584,154.45,154.4,6.4766]
[1727745591572,23.776884,154.46,154.41,6.4762]
[1727745591775,23.776884,154.46,154.38,34.32894831]
[1727745591776,1.61896102,154.45,154.38,16.1925]
[1727745592074,1.61896102,154.45,154.4,6.4766]
[1727745592370,8.09376102,154.45,154.39,6.477]
[1727745592955,6.4748,154.45,154.4,6.4764]
[1727745593157,1.6189633,154.44,154.4,6.4764]
[1727745595277,1.6189633,154.44,154.41,6.4762]
[1727745595477,1.61896312,154.45,154.41,6.4762]
[1727745595657,1.61896312,154.45,154.4,6.4765]
[1727745595864,6.475,154.44,154.39,6.477]
[1727745596172,1.61908141,154.43,154.39,6.477]
[1727745600987,6.4741,154.46,154.41,6.4761]
[1727745601280,20.0,154.48,154.41,6.4761]
[1727745601281,6.4733,154.48,154.43,6.4753]
[1727745601456,6.473,154.49,154.44,6.4749]
[1727745601783,6.4729,154.49,154.44,6.4749]
[1727745602160,6.4725,154.5,154.45,6.4745]
[1727745603176,6.4721,154.51,154.46,6.4741]
[1727745603372,16.1752,154.56,154.47,11.62201213]
[1727745603567,16.2195,154.57,154.49,18.09481213]
[1727745603788,6.4709,154.54,154.49,18.09481213]
[1727745604486,6.3757,154.58,154.49,11.62201213]
[1727745604785,31.63605273,154.61,154.51,27.14781213]
[1727745604964,6.4694,154.58,154.52,6.4715]
[1727745605160,1.61775413,154.57,154.52,6.4715]
[1727745605384,8.08735413,154.57,154.52,6.4715]
[1727745605572,1.61774105,154.56,154.52,6.4715]
[1727745605775,6.4696,154.57,154.52,6.4715]
[1727745606276,1.61769878,154.56,154.52,6.4715]
[1727745606780,6.4704,154.55,154.51,15.5258]
[1727745607088,1.61789218,154.54,154.46,15.5258]
[1727745607586,6.4728,154.5,154.46,15.5258]
[1727745607765,1.61837437,154.49,154.46,15.5258]
[1727745609070,6.4715,154.53,154.46,15.5258]
[1727745609372,6.4715,154.53,154.48,6.4732]
[1727745609572,1.61815002,154.52,154.48,6.4732]
[1727745610582,6.4715,154.53,154.48,6.4732]
[1727745610986,1.61814833,154.52,154.48,6.4732]
[1727745611289,6.4715,154.53,154.48,6.4732]
[1727745611603,1.6181489,154.52,154.47,6.4737]
[1727745612186,1.6181489,154.52,154.46,15.5258]
[1727745612187,6.4725,154.5,154.46,15.5258]
[1727745612685,6.472,154.52,154.46,21.9999]
[1727745613192,6.472,154.52,154.46,15.5258]
[1727745613394,1.61829761,154.51,154.47,6.4736]
[1727745613689,6.472,154.52,154.47,6.4736]
[1727745614986,1.61827893,154.54,154.46,15.5258]
[1727745615288,6.4707,154.55,154.49,6.4728]
[1727745615496,1.61795938,154.54,154.49,6.4728]
[1727745616198,6.4709,154.54,154.49,6.4728]
[1727745616369,1.6179627,154.53,154.49,6.4728]
[1727745617886,6.4709,154.54,154.49,6.4728]
[1727745618084,1.61795908,154.53,154.49,6.4728]
[1727745619486,8.08925908,154.53,154.48,6.4733]
[1727745619793,1.61810877,154.52,154.48,6.4733]
[1727745620574,6.4713,154.53,154.48,6.4733]
[1727745621101,1.61809688,154.52,154.46,15.5258]
[1727745621289,23.776884,154.54,154.46,15.5258]
[1727745621677,23.776884,154.55,154.46,15.5258]
[1727745621876,23.776884,154.53,154.46,15.5258]
[1727745622094,6.472,154.51,154.46,21.9998]
[1727745622402,1.61827598,154.5,154.46,21.9998]
[1727745622777,6.472,154.51,154.47,6.4737]
[1727745622977,6.4716,154.52,154.47,6.4737]
[1727745623184,1.61824241,154.51,154.47,6.4737]
[1727745623491,23.776884,154.55,154.46,15.5258]
[1727745623492,6.4708,154.54,154.49,6.4728]
[1727745623696,8.08879065,154.54,154.49,6.4728]
[1727745623884,30.247284,154.55,154.5,6.4723]
[1727745624090,6.4704,154.55,154.5,6.4723]
[1727745624278,13.03582495,154.59,154.51,6.4719]
[1727745624279,6.47,154.56,154.51,6.4719]
[1727745624478,20.0,154.58,154.53,6.4712]
[1727745624479,6.4694,154.58,154.53,6.4712]
[1727745624810,6.4687,154.59,154.53,18.12947234]
[1727745624983,6.4687,154.59,154.55,6.4703]
[1727745625180,6.4683,154.6,154.55,6.4703]
[1727745625800,6.4692,154.58,154.53,24.60057234]
[1727745626698,6.4692,154.58,154.53,6.4711]
[1727745632094,22.7827,154.63,154.52,16.3898]
[1727745632095,6.4687,154.59,154.54,6.4707]
[1727745633098,1.61747011,154.58,154.54,6.4707]
[1727745633811,6.4687,154.59,154.54,6.4707]
[1727745635405,1.61743327,154.58,154.54,6.4707]
[1727745639196,1.61743327,154.58,154.52,16.3898]
[1727745639397,23.776884,154.61,154.53,6.4711]
[1727745639602,6.4691,154.59,154.54,11.59883487]
[1727745639925,1.61744229,154.58,154.54,11.59883487]
[1727745641113,8.08654252,154.59,154.54,18.06963487]
[1727745641318,1.61744252,154.59,154.52,16.3898]
[1727745641629,6.47,154.56,154.52,27.98863487]
[1727745642815,6.4696,154.57,154.52,34.46023487]
[1727745643117,1.61762775,154.56,154.52,34.46023487]
[1727745643610,6.4696,154.57,154.52,34.46023487]
[1727745643989,1.61762251,154.56,154.52,34.46023487]
[1727745644221,1.61762251,154.56,154.52,16.3898]
[1727745644513,23.776884,154.58,154.52,16.3898]
[1727745644707,23.776884,154.56,154.52,16.3898]
[1727745644905,1.61787585,154.55,154.52,16.3898]
[1727745645110,6.4708,154.54,154.52,16.3898]
[1727745645915,8.08907547,154.53,154.48,26.82153487]
[1727745646514,1.6180719,154.52,154.48,26.82153487]
[1727745646815,6.4707,154.55,154.5,11.59883487]
[1727745647198,8.08883909,154.54,154.5,11.59883487]
[1727745647609,6.4709,154.54,154.49,6.4729]
[1727745647914,1.61800882,154.53,154.49,6.4729]
[1727745648497,6.4709,154.54,154.49,6.4729]
[1727745648713,1.61800865,154.53,154.49,6.4729]
[1727745648909,1.61800865,154.53,154.48,21.6959]
[1727745649298,8.08920865,154.53,154.48,21.6959]
[1727745649498,1.61801712,154.52,154.48,21.6959]
[1727745649898,6.4712,154.53,154.48,21.6959]
[1727745650798,6.4708,154.55,154.5,6.4723]
[1727745651103,1.6178923,154.54,154.5,6.4723]
[1727745651302,8.08869015,154.55,154.5,6.4723]
[1727745652599,6.4732,154.49,154.44,6.4749]
[1727745652901,17.79459015,154.55,154.42,7.27330299]
[1727745652902,6.4745,154.46,154.42,7.27330299]
[1727745653104,1.61885839,154.45,154.4,22.1976]
[1727745654229,6.4745,154.46,154.41,6.4762]
[1727745656816,36.181,154.51,154.42,6.4758]
[1727745657011,6.4734,154.48,154.42,6.4758]
[1727745659712,6.4734,154.48,154.4,33.85541832]
[1727745659900,6.4734,154.48,154.43,6.4753]
[1727745660302,23.776884,154.5,154.42,18.13441832]
[1727745660607,16.1772,154.54,154.46,6.474]
[1727745660814,22.8081,154.56,154.47,6.4736]
[1727745661032,6.4717,154.52,154.47,6.4736]
[1727745662303,1.61819315,154.51,154.47,6.4736]
[1727745662501,6.4717,154.52,154.47,6.4736]
[1727745669419,6.4713,154.53,154.46,33.18191832]
[1727745669623,6.73195233,154.59,154.46,33.18191832]
[1727745669624,6.4704,154.55,154.51,11.60601144]
[1727745669830,6.4704,154.55,154.51,18.07801144]
[1727745670334,6.4715,154.53,154.49,11.60601144]
[1727745671331,6.4708,154.54,154.5,6.4724]
[1727745672923,43.776884,154.57,154.5,6.4724]
[1727745673138,6.4703,154.56,154.51,18.07801144]
[1727745673424,8.08815644,154.55,154.51,11.60601144]
[1727745673629,6.4704,154.55,154.51,11.60601144]
[1727745673833,6.47,154.56,154.51,18.07801144]
[1727745674214,22.02814876,154.6,154.46,15.0475]
[1727745674538,38.4012,154.64,154.56,11.60601144]
[1727745674722,6.4679,154.61,154.56,18.07581144]
[1727745675412,6.4679,154.61,154.58,11.60601144]
[1727745675612,6.4679,154.61,154.56,6.4698]
[1727745677211,6.4675,154.62,154.57,6.4694]
[1727745679620,6.4679,154.61,154.56,6.4699]
[1727745679821,6.4674,154.63,154.57,6.4692]
[1727745681241,6.4674,154.63,154.58,6.469]
[1727745682323,6.4665,154.65,154.6,6.4682]
[1727745684815,6.467,154.63,154.58,29.2386]
[1727745685945,6.4675,154.62,154.58,22.7696]
[1727745686149,1.61701855,154.61,154.54,22.2812]
[1727745686329,23.776884,154.63,154.54,22.2812]
[1727745686537,6.469,154.59,154.54,28.7519]
[1727745687049,8.08637675,154.58,154.54,22.2812]
[1727745687232,1.61739591,154.62,154.54,15.6244]
[1727745687426,6.4705,154.55,154.5,22.2812]
[1727745687632,17.78679591,154.62,154.5,22.2812]
[1727745687633,6.47,154.56,154.51,6.472]
[1727745688028,6.4696,154.57,154.52,6.4716]
[1727745688840,6.4691,154.58,154.52,6.4716]
[1727745689027,6.4687,154.59,154.54,6.4706]
[1727745689231,20.0,154.61,154.53,18.11480989]
[1727745689547,6.4683,154.6,154.55,6.4703]
[1727745692538,6.4674,154.63,154.58,6.4691]
[1727745693129,6.0848,154.66,154.57,33.97610989]
[1727745693343,6.4667,154.64,154.59,6.4685]
[1727745696934,6.4677,154.62,154.57,28.4835]
[1727745697248,1.61699013,154.61,154.53,22.6846]
[1727745697427,6.4687,154.59,154.54,6.4707]
[1727745698046,6.4683,154.6,154.55,6.4703]
[1727745699646,1.61728192,154.59,154.55,6.4703]
[1727745699951,6.4691,154.58,154.53,22.7558]
[1727745700355,62.054784,154.63,154.49,24.67940989]
[1727745700356,23.776884,154.57,154.49,6.4729]
[1727745700533,6.4711,154.54,154.46,15.9374]
[1727745700727,6.4711,154.54,154.49,6.4728]
[1727745701637,1.61796425,154.55,154.46,15.9374]
[1727745701839,23.776884,154.57,154.46,15.9374]
[1727745701840,6.4717,154.52,154.46,15.9374]
[1727745702039,6.4717,154.52,154.47,6.4736]
[1727745702535,6.4712,154.53,154.48,6.4732]
[1727745702932,6.4708,154.54,154.48,6.4732]
[1727745703857,6.4704,154.55,154.5,6.4723]
[1727745704639,23.776884,154.57,154.48,18.11480989]
[1727745704856,30.246384,154.57,154.51,6.4716]
[1727745706047,6.47,154.56,154.51,6.4716]
[1727745706252,1.6178,154.55,154.51,6.4716]
[1727745707157,6.47,154.56,154.51,6.4716]
[1727745707554,1.61779905,154.55,154.51,6.4716]
[1727745707857,6.47,154.56,154.51,6.4716]
[1727745708863,6.4695,154.58,154.52,6.4715]
[1727745709040,6.4697,154.57,154.52,6.4715]
[1727745709861,6.4697,154.57,154.53,6.4712]
[1727745711544,6.4691,154.59,154.54,6.4707]
[1727745712261,6.4684,154.6,154.55,6.4702]
[1727745712647,22.7563,154.64,154.52,18.11480989]
[1727745712847,6.468,154.61,154.56,6.4698]
[1727745713080,1.61727503,154.6,154.53,15.4414]
[1727745713442,1.61727503,154.6,154.53,6.4711]
[1727745713641,6.4692,154.58,154.53,6.4711]
[1727745713843,1.61751281,154.57,154.53,6.4711]
[1727745714773,6.4692,154.58,154.53,6.4711]
[1727745716347,8.08700316,154.57,154.53,6.4711]
[1727745716550,6.4695,154.57,154.53,6.4711]
[1727745717150,6.4691,154.58,154.54,6.4707]
[1727745717344,22.7563,154.64,154.54,6.4707]
[1727745717345,6.4687,154.59,154.54,6.4707]
[1727745719650,6.4683,154.6,154.55,6.4703]
[1727745720375,43.776884,154.62,154.49,16.1706]
[1727745720376,6.4679,154.61,154.56,6.4699]
[1727745721553,8.0855661,154.6,154.56,6.4699]
[1727745721745,6.4683,154.6,154.56,6.4699]
[1727745722373,6.4683,154.6,154.54,18.11480989]
[1727745722374,6.4699,154.57,154.52,6.4715]
[1727745722665,8.08770434,154.56,154.51,6.472]
[1727745722860,1.61776808,154.55,154.51,6.472]
[1727745723171,6.4704,154.55,154.51,6.472]
[1727745723677,1.61778372,154.61,154.49,16.1706]
[1727745723678,43.776884,154.59,154.49,16.1706]
[1727745723848,21.6388,154.57,154.46,18.11480989]
[1727745724194,6.4716,154.52,154.47,6.4736]
[1727745724356,1.61817709,154.51,154.47,6.4736]
[1727745724556,21.6388,154.57,154.45,15.5642]
[1727745724557,6.4712,154.53,154.48,6.4732]
[1727745724757,6.47,154.56,154.51,6.472]
[1727745725267,1.61775152,154.55,154.51,6.472]
[1727745726347,8.08775966,154.56,154.51,6.472]
[1727745726551,6.4695,154.57,154.52,6.4715]
[1727745727059,6.4692,154.58,154.52,6.4715]
[1727745728046,20.0,154.6,154.5,18.11480989]
[1727745728349,6.4691,154.59,154.54,6.4708]
[1727745728558,6.4683,154.6,154.55,6.4703]
[1727745730767,6.4679,154.61,154.56,6.4698]
[1727745731170,1.61724934,154.6,154.56,6.4698]
[1727745731466,8.08564934,154.6,154.54,18.11480989]
[1727745731684,6.4684,154.6,154.55,6.4701]
[1727745732256,6.4678,154.62,154.54,18.11480989]
[1727745732657,21.6727,154.65,154.58,6.469]
[1727745732658,6.467,154.63,154.58,6.469]
[1727745733354,6.467,154.63,154.59,6.4687]
[1727745733870,21.9247,154.65,154.59,6.4687]
[1727745734072,6.4667,154.64,154.59,6.4687]
[1727745734258,6.4658,154.66,154.61,6.4677]
[1727745734678,6.4658,154.66,154.6,18.11480989]
[1727745734972,6.4653,154.67,154.63,6.467]
[1727745735177,6.4653,154.67,154.6,18.11480989]
[1727745735351,6.4653,154.67,154.61,6.4674]
[1727745735764,1.61655604,154.66,154.61,6.4674]
[1727745736075,6.4661,154.66,154.61,6.4674]
[1727745736454,8.08284046,154.65,154.6,6.4682]
[1727745736755,6.4662,154.65,154.6,6.4682]
[1727745737255,6.4671,154.63,154.58,6.4691]
[1727745737461,1.61698701,154.62,154.58,6.4691]
[1727745737682,1.61698701,154.62,154.57,16.3589]
[1727745737972,1.61698701,154.62,154.54,24.47930989]
[1727745737973,6.4677,154.62,154.56,6.4696]
[1727745738279,1.61717238,154.61,154.56,6.4696]
[1727745740164,6.4666,154.64,154.59,6.4683]
[1727745741271,23.0207,154.69,154.58,18.11480989]
[1727745741460,1.61672115,154.68,154.58,18.11480989]
[1727745741660,6.4662,154.65,154.61,6.4677]
[1727745741876,6.4662,154.65,154.59,6.4683]
[1727745742172,6.467,154.63,154.59,6.4683]
[1727745742382,1.61693179,154.62,154.54,24.47930989]
[1727745742591,6.4675,154.62,154.54,24.47930989]
[1727745743658,6.4675,154.62,154.57,6.4691]
[1727745745470,6.4675,154.62,154.58,6.4691]
[1727745745662,6.467,154.64,154.58,6.4691]
[1727745746071,6.467,154.64,154.6,6.4682]
[1727745746277,6.4658,154.66,154.61,6.4677]
[1727745747258,8.08292853,154.65,154.6,6.4682]
[1727745747460,1.61673535,154.64,154.56,18.11480989]
[1727745747684,6.4671,154.63,154.59,6.4686]
[1727745750880,6.4658,154.66,154.61,6.4677]
[1727745751095,20.0,154.68,154.6,18.11480989]
[1727745751284,23.0207,154.69,154.63,6.467]
[1727745751474,6.4641,154.7,154.66,6.4657]
[1727745751779,6.4641,154.7,154.65,6.4661]
[1727745752470,6.4636,154.72,154.64,18.11480989]
[1727745752671,6.4636,154.72,154.67,6.4653]
[1727745752988,8.0798391,154.71,154.66,6.4657]
[1727745753169,8.0798391,154.71,154.64,18.11480989]
[1727745753170,6.4641,154.7,154.65,6.4661]
[1727745753378,1.61626047,154.69,154.65,6.4661]
[1727745754066,8.08076047,154.69,154.61,28.95731839]
[1727745754270,1.61627185,154.68,154.64,6.4665]
[1727745754469,8.08117185,154.68,154.64,6.4665]
[1727745754666,21.9665,154.73,154.6,6.1497]
[1727745754667,8.08209136,154.67,154.6,6.1497]
[1727745754872,6.4657,154.67,154.62,6.4673]
[1727745755371,6.4657,154.67,154.6,6.1497]
[1727745755568,6.465,154.68,154.63,6.467]
[1727745758488,1.61644404,154.67,154.61,6.4674]
[1727745758688,6.4658,154.66,154.61,6.4674]
[1727745759180,6.467,154.63,154.58,6.4688]
[1727745759387,6.4671,154.63,154.58,6.4691]
[1727745761168,6.4675,154.62,154.56,6.1953]
[1727745761365,6.4671,154.63,154.57,6.4691]
[1727745761572,6.4671,154.63,154.58,6.4687]
[1727745766778,43.776884,154.66,154.56,6.1953]
[1727745766976,6.4658,154.66,154.61,6.4674]
[1727745767175,29.407,154.67,154.62,6.4673]
[1727745767487,26.50075678,154.78,154.58,28.95731839]
[1727745767488,6.465,154.68,154.63,6.467]
[1727745775297,1.61648069,154.67,154.63,6.467]
[1727745775599,6.465,154.68,154.63,6.467]
[1727745776475,1.61647961,154.67,154.63,6.467]
[1727745776675,1.61647961,154.67,154.61,15.8436]
[1727745776892,6.4666,154.64,154.6,6.4682]
[1727745777069,6.4666,154.64,154.59,6.4686]
[1727745778294,8.08386045,154.63,154.59,6.4686]
[1727745778497,6.467,154.63,154.59,6.4686]
[1727745778695,6.467,154.63,154.58,6.469]
[1727745779485,6.4666,154.64,154.59,6.4686]
[1727745781707,6.4692,154.58,154.53,22.6154]
[1727745781874,6.4688,154.59,154.54,6.4706]
[1727745782079,1.61744949,154.58,154.53,22.6154]
[1727745782291,1.61748433,154.6,154.53,22.6154]
[1727745783202,6.4694,154.58,154.53,22.6154]
[1727745785600,1.61747914,154.57,154.53,22.6154]
[1727745786696,6.4694,154.58,154.53,22.6154]
[1727745787000,1.61750785,154.57,154.53,22.6154]
[1727745788504,16.1684,154.63,154.53,34.2464926]
[1727745788686,21.6172854,154.62,154.53,34.2464926]
[1727745789003,21.6172854,154.62,154.54,6.4707]